fUST/lending_fUST_20260115
["ID","MTS","AMOUNT","RATE_DAILY","PERIOD"]
[402027953,1768487443429,-457.0,0.0001508,2]
[402027954,1768487443439,-849.26,0.00015144,2]
[402027955,1768487443448,-465.91564198,0.00015217,2]
[402027956,1768487443458,-605.07188428,0.00015342,2]
[402027957,1768487443467,-2065.26822594,0.00015342,2]
[402027958,1768487443476,-890.91804532,0.00015342,2]
[402027959,1768487443485,-2000.0,0.00015342,2]
[402027960,1768487443495,-2000.0,0.00015342,2]
[402027961,1768487443504,-2500.0,0.00015464,2]
[402027962,1768487443513,-849.26,0.00015523,2]
[402027963,1768487443522,-3664.758054,0.00015524,7]
[402027964,1768487443531,-1367.0,0.00015593,2]
[402027965,1768487443541,-629.0,0.00015593,2]
[402027966,1768487443551,-2147.0,0.00015593,2]
[402027967,1768487443560,-715.0,0.00015593,2]
[402027968,1768487443569,-178.0,0.00015593,2]
[402027969,1768487443579,-417.0,0.00015593,2]
[402027970,1768487443587,-417.0,0.00015593,2]
[402027971,1768487443597,-1152.0,0.00015703,2]
[402027972,1768487443606,-864.0,0.00015808,2]
[402027973,1768487443615,-2500.0,0.0001589,2]
[402027974,1768487443624,-2500.0,0.0001589,2]
[402027975,1768487443633,-1529.618752,0.00015894,7]
[402027976,1768487443642,-1150.689465,0.00015924,7]
[402027977,1768487443652,-226.540644,0.00015924,7]
[402027978,1768487443661,-215.91779165,0.00016,2]
[402027979,1768487443670,-3000.0,0.00016012,2]
[402027980,1768487443679,-204.986964,0.00016239,7]
[402027981,1768487443688,-3000.0,0.0001624,2]
[402027982,1768487443698,-151.0,0.00016438,2]
[402027983,1768487443707,-151.0,0.00016438,2]
[402027984,1768487443716,-3000.0,0.00016438,2]
[402027985,1768487443725,-1500.0,0.00016438,2]
[402027986,1768487443734,-184.58,0.0001644,2]
[402027987,1768487443744,-184.58,0.0001644,2]
[402027988,1768487443753,-184.58,0.0001644,2]
[402027989,1768487443762,-436.43598081,0.0001644,2]
[402027990,1768487443771,-200.0,0.00016473,2]
[402027991,1768487443780,-3503.04077884,0.0001656,2]
[402027992,1768487443792,-11393.70973625,0.00016891,2]
[402027993,1768487443802,-158.0,0.000169,2]
[402027994,1768487443811,-3500.0,0.00016986,2]
[402027995,1768487443820,-111514.58939411,0.00017,2]
[402027996,1768487443829,-849.26,0.00017009,2]
[402027997,1768487443839,-58714.84468794,0.0001701,3]
[402027998,1768487443848,-258.9860714,0.00017063,2]
[402027999,1768487443856,-1613.0,0.0001726,2]
[402028000,1768487443866,-1000.0,0.00017388,2]
[402028001,1768487443875,-5000.0,0.00017412,2]
[402028002,1768487443885,-500.0,0.00017534,2]
[402028003,1768487443894,-3000.0,0.0001761,7]
[402028004,1768487443903,-4108.2235287,0.000178,3]
[402028005,1768487443912,-180.16394919,0.00017827,2]
[402028006,1768487443921,-158.0,0.000179,3]
[402028007,1768487443930,-158.0,0.000179,3]
[402028008,1768487443940,-9761.90587199,0.00018,2]
[402028009,1768487443949,-500.0,0.00018,2]
[402028010,1768487443958,-154.4290986,0.00018399,2]
[402028011,1768487443967,-153.0,0.00018399,2]
[402028012,1768487443976,-153.0,0.00018399,2]
[402028013,1768487443985,-487.44797857,0.0001844,2]
[402028014,1768487443995,-532.6,0.00018441,2]
[402028015,1768487444004,-213.972567,0.00018493,2]
[402028016,1768487444014,-849.26,0.00018523,2]
[402028017,1768487444023,-1367.0,0.00018593,2]
[402028018,1768487444032,-629.0,0.00018593,2]
[402028019,1768487444042,-2147.0,0.00018593,2]
[402028020,1768487444052,-715.0,0.00018593,2]
[402028021,1768487444061,-178.0,0.00018593,2]
[402028022,1768487444070,-417.0,0.00018593,2]
[402028023,1768487444080,-417.0,0.00018593,2]
[402028024,1768487444090,-3000.0,0.00018706,7]
[402028025,1768487444100,-475.0,0.0001872,2]
[402028026,1768487444109,-475.0,0.0001872,2]
[402028027,1768487444118,-11393.70973625,0.00018807,2]
[402028028,1768487444127,-5000.0,0.00018863,2]
[402028029,1768487444137,-159.0,0.000189,3]
[402028030,1768487444145,-159.0,0.000189,3]
[402028031,1768487444155,-303.10001622,0.000189,2]
[402028032,1768487444165,-303.10001603,0.000189,2]
[402028033,1768487444174,-3036.71862706,0.00018952,5]
[402028034,1768487444184,-532.6,0.00018959,2]
[402028035,1768487444193,-2258.0,0.00018971,2]
[402028036,1768487444203,-498.0,0.00018984,5]
[402028037,1768487444212,-1510.0,0.00018984,5]
[402028038,1768487444222,-583.0,0.00018984,5]
[402028039,1768487444231,-849.26,0.00018989,2]
[402028040,1768487444243,-849.26,0.00018989,2]
[402028041,1768487444253,-849.26,0.00018989,2]
[402028042,1768487444262,-849.26,0.00018989,2]
[402028043,1768487444271,-849.26,0.00018989,2]
[402028044,1768487444282,-1044.19400979,0.00019,5]
[402028045,1768487444293,-303.10001603,0.00019089,2]
[402028046,1768487444302,-1000.0,0.00019127,2]
[402028047,1768487444312,-244.0,0.00019127,2]
[402028048,1768487444324,-849.26,0.00019177,2]
[402028049,1768487444333,-849.26,0.00019177,2]
[402028050,1768487444342,-507.23,0.00019178,2]
[402028051,1768487444351,-507.2385,0.00019178,2]
[402028052,1768487444361,-507.2385,0.00019178,2]
[402028053,1768487444369,-507.2385,0.00019178,2]
[402028054,1768487444378,-507.2385,0.00019178,2]
[402028055,1768487444387,-200.0,0.00019178,2]
[402028056,1768487444397,-507.2385,0.00019178,2]
[402028057,1768487444406,-507.2385,0.00019178,2]
[402028058,1768487444415,-507.2385,0.00019178,2]
[402028059,1768487444424,-507.2385,0.00019178,2]
[402028060,1768487444433,-507.2385,0.00019178,2]
[402028061,1768487444443,-507.2385,0.00019178,2]
[402028062,1768487444452,-507.2385,0.00019178,2]
[402028063,1768487444461,-507.2385,0.00019178,2]
[402028064,1768487444471,-507.2385,0.00019178,2]
[402028065,1768487444480,-476.99,0.00019178,2]
[402028066,1768487444489,-507.2385,0.00019178,2]
[402028067,1768487444499,-305.61,0.00019178,2]
[402028068,1768487444508,-648.6,0.00019178,2]
[402028069,1768487444517,-648.6,0.00019178,2]
[402028070,1768487444527,-648.6,0.00019178,2]
[402028071,1768487444537,-648.6,0.00019178,2]
[402028072,1768487444546,-648.6,0.00019178,2]
[402028073,1768487444555,-648.6,0.00019178,2]
[402028074,1768487444565,-648.6,0.00019178,2]
[402028075,1768487444574,-648.6,0.00019178,2]
[402028076,1768487444583,-648.6,0.00019178,2]
[402028077,1768487444592,-648.6,0.00019178,2]
[402028078,1768487444602,-648.6,0.00019178,2]
[402028079,1768487444612,-648.6,0.00019178,2]
[402028080,1768487444621,-648.6,0.00019178,2]
[402028081,1768487444630,-648.6,0.00019178,2]
[402028082,1768487444639,-648.6,0.00019178,2]
[402028083,1768487444648,-648.6,0.00019178,2]
[402028084,1768487444657,-648.6,0.00019178,2]
[402028085,1768487444667,-648.6,0.00019178,2]
[402028086,1768487444676,-648.6,0.00019178,2]
[402028087,1768487444685,-648.6,0.00019178,2]
[402028088,1768487444694,-648.6,0.00019178,2]
[402028089,1768487444704,-648.6,0.00019178,2]
[402028090,1768487444713,-648.6,0.00019178,2]
[402028091,1768487444722,-648.74161084,0.00019178,2]
[402028092,1768487444731,-5000.0,0.00019178,2]
[402028093,1768487444741,-5000.0,0.00019178,2]
[402028094,1768487444751,-5000.0,0.00019178,2]
[402028095,1768487444760,-5000.0,0.00019178,2]
[402028096,1768487444769,-151.0,0.00019178,2]
[402028097,1768487444779,-243.48264022,0.00019178,2]
[402028098,1768487444788,-1501.018246,0.00019178,2]
[402028099,1768487444798,-1501.018246,0.00019178,2]
[402028100,1768487444807,-1501.018246,0.00019178,2]
[402028101,1768487444816,-1501.018246,0.00019178,2]
[402028102,1768487444825,-1501.018246,0.00019178,2]
[402028103,1768487444834,-1501.018246,0.00019178,2]
[402028104,1768487444843,-1501.018246,0.00019178,2]
[402028105,1768487444853,-1501.018246,0.00019178,2]
[402028106,1768487444862,-1501.018246,0.00019178,2]
[402028107,1768487444871,-1501.018246,0.00019178,2]
[402028108,1768487444880,-1501.018246,0.00019178,2]
[402028109,1768487444890,-1501.018246,0.00019178,2]
[402028110,1768487444899,-1501.018246,0.00019178,2]
[402028111,1768487444910,-1501.018246,0.00019178,2]
[402028112,1768487444919,-1501.018246,0.00019178,2]
[402028113,1768487444928,-1501.018246,0.00019178,2]
[402028114,1768487444937,-1501.018246,0.00019178,2]
[402028115,1768487444947,-1501.018246,0.00019178,2]
[402028116,1768487444956,-1501.018246,0.00019178,2]
[402028117,1768487444966,-1501.018246,0.00019178,2]
[402028118,1768487444976,-849.26,0.00019199,2]
[402028119,1768487444985,-18999.06,0.000192,2]
[402028120,1768487444994,-3290.72,0.000192,2]
[402028121,1768487445004,-159.17,0.000192,2]
[402028122,1768487445013,-157.97,0.000192,2]
[402028123,1768487445023,-167.84,0.000192,2]
[402028124,1768487445032,-303.10001603,0.00019278,2]
[402028125,1768487445042,-303.10001583,0.00019467,2]
[402028126,1768487445052,-532.6,0.00019478,2]
[402028127,1768487445061,-849.26,0.00019588,2]
[402028128,1768487445071,-849.26,0.00019588,2]
[402028129,1768487445083,-849.26,0.00019588,2]
[402028130,1768487445092,-849.26,0.00019588,2]
[402028131,1768487445103,-849.38245362,0.00019588,2]
[402028132,1768487445112,-1041.66666667,0.00019627,2]
[402028133,1768487445121,-160.0,0.00019627,2]
[402028134,1768487445131,-250.0,0.00019726,2]
[402028135,1768487445141,-159.0,0.000198,4]
[402028136,1768487445151,-159.0,0.000198,4]
[402028137,1768487445160,-3000.0,0.00019802,7]
[402028138,1768487445170,-18999.06,0.000199,2]
[402028139,1768487445180,-3290.72,0.000199,2]
[402028140,1768487445190,-159.17,0.000199,2]
[402028141,1768487445200,-157.97,0.000199,2]
[402028142,1768487445209,-1392.447584,0.0001996,5]
[402028143,1768487445219,-1000.0,0.0001998,5]
[402028144,1768487445229,-532.6,0.00019996,2]
[402028145,1768487445239,-17952.93198753,0.0002,2]
[402028146,1768487445250,-500.8571,0.0002,2]
[402028147,1768487445259,-300.0,0.0002,2]
[402028148,1768487445268,-583.4952,0.0002,2]
[402028149,1768487445279,-154.8184438,0.0002,2]
[402028150,1768487445290,-1000.0,0.0002,5]
[402028151,1768487445300,-507.2315,0.0002,4]
[402028152,1768487445310,-507.2385,0.0002,4]
[402028153,1768487445320,-507.2385,0.0002,4]
[402028154,1768487445330,-507.2385,0.0002,4]
[402028155,1768487445339,-507.2385,0.0002,4]
[402028156,1768487445349,-507.2385,0.0002,4]
[402028157,1768487445358,-507.2385,0.0002,4]
[402028158,1768487445368,-507.2385,0.0002,4]
[402028159,1768487445377,-507.2385,0.0002,4]
[402028160,1768487445386,-507.2385,0.0002,4]
[402028161,1768487445395,-250.0,0.0002,10]
[402028162,1768487445404,-507.2385,0.0002,4]
[402028163,1768487445413,-183.24618593,0.0002,2]
[402028164,1768487445422,-5502.61193904,0.0002,2]
[402028165,1768487445432,-358.96523988,0.0002,7]
[402028166,1768487445441,-2000.0,0.0002,7]
[402028167,1768487445450,-250.0,0.000201,10]
[402028168,1768487445460,-250.0,0.000202,10]
[402028169,1768487445469,-350.0,0.00020274,2]
[402028170,1768487445478,-250.0,0.000203,10]
[402028171,1768487445488,-250.0,0.000204,10]
[402028172,1768487445497,-507.2385,0.00020411,5]
[402028173,1768487445511,-507.2385,0.00020411,5]
[402028175,1768487445521,-507.2385,0.00020411,5]
[402028177,1768487445530,-507.2385,0.00020411,5]
[402028179,1768487445542,-507.2385,0.00020411,5]
[402028180,1768487445552,-507.2385,0.00020411,5]
[402028182,1768487445561,-507.2385,0.00020411,5]
[402028183,1768487445571,-507.2385,0.00020411,5]
[402028184,1768487445580,-507.2385,0.00020411,5]
[402028185,1768487445589,-538.45997632,0.0002044,2]
[402028186,1768487445599,-205.3681177,0.000205,2]
[402028187,1768487445608,-250.0,0.000205,10]
[402028188,1768487445618,-2000.0,0.000205,7]
[402028189,1768487445627,-532.6,0.00020514,2]
[402028191,1768487445637,-5000.0,0.00020546,2]
[402028192,1768487445646,-331.834543,0.00020548,2]
[402028193,1768487445655,-18999.06,0.000206,2]
[402028194,1768487445664,-3290.72,0.000206,2]
[402028195,1768487445673,-159.17,0.000206,2]
[402028197,1768487445683,-157.97,0.000206,2]
[402028199,1768487445692,-250.0,0.000206,10]
[402028201,1768487445702,-237.89225561,0.00020658,3]
[402028203,1768487445721,-250.0,0.000207,10]
[402028205,1768487445732,-1369.39,0.000207,3]
[402028207,1768487445741,-11393.70973625,0.00020724,2]
[402028210,1768487445750,-917.771251,0.00020731,7]
[402028212,1768487445761,-250.0,0.000208,10]
[402028213,1768487445772,-450.0,0.00020822,2]
[402028214,1768487445781,-1424.0,0.00020852,2]
[402028215,1768487445793,-200.0,0.00020881,30]
[402028216,1768487445802,-200.0,0.00020881,30]
[402028217,1768487445811,-200.0,0.00020881,30]
[402028219,1768487445820,-3000.0,0.00020898,7]
[402028220,1768487445829,-250.0,0.000209,10]
[402028221,1768487445839,-657.56,0.00021,7]
[402028222,1768487445848,-3000.0,0.00021,4]
[402028223,1768487445857,-3000.0,0.00021,4]
[402028224,1768487445866,-160.67987506,0.00021,5]
[402028225,1768487445876,-3000.0,0.00021,2]
[402028226,1768487445885,-10000.0,0.00021,2]
[402028227,1768487445896,-48967.000001,0.00021,2]
[402028228,1768487445905,-10000.0,0.00021,2]
[402028229,1768487445914,-10000.0,0.00021,2]
[402028230,1768487445923,-5011.91601831,0.00021,2]
[402028231,1768487445932,-250.0,0.00021,10]
[402028232,1768487445941,-2000.0,0.00021,7]
[402028233,1768487445950,-3000.0,0.0002101,2]
[402028234,1768487445960,-3000.0,0.0002102,2]
[402028235,1768487445969,-3000.0,0.0002103,2]
[402028236,1768487445979,-532.6,0.00021032,2]
[402028237,1768487445988,-1000.0,0.0002104,2]
[402028238,1768487445997,-492.0,0.0002104,2]
[402028240,1768487446006,-3000.0,0.0002104,2]
[402028242,1768487446015,-3000.0,0.0002105,2]
[402028244,1768487446024,-3000.0,0.0002106,2]
[402028245,1768487446033,-3000.0,0.0002107,2]
[402028246,1768487446044,-3000.0,0.0002108,2]
[402028247,1768487446053,-3000.0,0.0002109,2]
[402028248,1768487446062,-3000.0,0.000211,2]
[402028249,1768487446072,-250.0,0.000211,10]
[402028250,1768487446082,-3000.0,0.0002111,2]
[402028251,1768487446092,-3000.0,0.0002112,2]
[402028252,1768487446101,-3000.0,0.0002113,2]
[402028253,1768487446111,-3000.0,0.0002114,2]
[402028254,1768487446120,-3000.0,0.0002115,2]
[402028255,1768487446129,-10000.0,0.0002115,2]
[402028256,1768487446138,-3000.0,0.0002116,2]
[402028257,1768487446147,-3000.0,0.0002117,2]
[402028258,1768487446156,-3000.0,0.0002118,2]
[402028259,1768487446165,-3000.0,0.0002119,2]
[402028260,1768487446174,-160.0,0.000212,2]
[402028261,1768487446183,-3000.0,0.000212,2]
[402028262,1768487446193,-728.0,0.000212,2]
[402028263,1768487446203,-3000.0,0.0002121,2]
[402028264,1768487446212,-3000.0,0.0002122,2]
[402028265,1768487446221,-3000.0,0.0002123,2]
[402028266,1768487446231,-3000.0,0.0002124,2]
[402028267,1768487446401,-3000.0,0.0002125,2]
[402028268,1768487446411,-3000.0,0.0002126,2]
[402028269,1768487446420,-3000.0,0.0002127,2]
[402028270,1768487446430,-3000.0,0.0002128,2]
[402028271,1768487446440,-4920.781507,0.0002129,2]
[402028272,1768487446450,-18999.06,0.000213,2]
[402028273,1768487446459,-3290.72,0.000213,2]
[402028274,1768487446469,-157.97,0.000213,2]
[402028275,1768487446479,-159.17,0.000213,2]
[402028276,1768487446489,-550.0,0.0002137,2]
[402028277,1768487446498,-11902.79011495,0.000215,2]
[402028278,1768487446509,-2000.0,0.000215,7]
[402028279,1768487446519,-532.6,0.00021551,2]
[402028280,1768487446529,-1367.0,0.00021593,2]
[402028281,1768487446541,-629.0,0.00021593,2]
[402028282,1768487446550,-2147.0,0.00021593,2]
[402028283,1768487446559,-715.0,0.00021593,2]
[402028284,1768487446568,-178.0,0.00021593,2]
[402028285,1768487446577,-417.0,0.00021593,2]
[402028286,1768487446587,-417.0,0.00021593,2]
[402028287,1768487446596,-700.0,0.00021638,2]
[402028288,1768487446605,-700.0,0.00021654,2]
[402028289,1768487446615,-333.33333333,0.00021654,2]
[402028290,1768487446624,-188.36602007,0.00021654,2]
[402028291,1768487446633,-220.37445262,0.00021654,2]
[402028292,1768487446643,-944.88063217,0.00021654,2]
[402028293,1768487446652,-1700.0,0.00021669,2]
[402028294,1768487446661,-194.246702,0.00021671,2]
[402028295,1768487446670,-194.246702,0.00021671,2]
[402028296,1768487446680,-194.246702,0.00021687,2]
[402028297,1768487446689,-194.246702,0.00021687,2]
[402028298,1768487446698,-194.246702,0.00021687,2]
[402028299,1768487446708,-194.246702,0.00021687,2]
[402028300,1768487446717,-194.246702,0.00021687,2]
[402028301,1768487446726,-2738.78,0.000217,3]
[402028302,1768487446735,-944.88063217,0.00021717,5]
[402028303,1768487446745,-700.0,0.00021728,2]
[402028304,1768487446754,-186.0,0.00021753,5]
[402028305,1768487446763,-324.71700195,0.00021776,2]
[402028306,1768487446772,-162.35850096,0.00021776,2]
[402028307,1768487446782,-944.88063217,0.0002178,9]
[402028308,1768487446793,-333.33333333,0.00021785,9]
[402028309,1768487446802,-700.0,0.00021828,2]
[402028310,1768487446811,-944.88063217,0.00021843,13]
[402028311,1768487446821,-1700.0,0.00021857,2]
[402028312,1768487446831,-500.0,0.00021875,2]
[402028313,1768487446840,-700.0,0.000219,2]
[402028314,1768487446850,-163.52249809,0.000219,14]
[402028315,1768487446859,-944.88063217,0.00021906,16]
[402028316,1768487446869,-500.0,0.00021914,2]
[402028317,1768487446879,-333.33333333,0.00021915,17]
[402028318,1768487446888,-1099.53432746,0.00021917,2]
[402028319,1768487446897,-500.0,0.00021917,2]
[402028320,1768487446907,-200.126914,0.00021917,2]
[402028321,1768487446916,-172.467821,0.00021917,2]
[402028322,1768487446925,-158.825672,0.00021917,2]
[402028323,1768487446934,-500.0,0.00021917,2]
[402028324,1768487446943,-500.0,0.00021917,2]
[402028325,1768487446952,-500.0,0.00021917,2]
[402028326,1768487446960,-500.0,0.00021917,2]
[402028327,1768487446969,-500.0,0.00021917,2]
[402028328,1768487446978,-512.85424143,0.00021917,2]
[402028329,1768487446987,-500.0,0.00021917,2]
[402028330,1768487446996,-500.0,0.00021917,2]
[402028331,1768487447005,-500.0,0.00021917,2]
[402028332,1768487447014,-500.0,0.00021917,2]
[402028333,1768487447023,-500.0,0.00021917,2]
[402028334,1768487447032,-1002.9,0.00021917,2]
[402028335,1768487447043,-500.0,0.00021917,2]
[402028336,1768487447051,-500.0,0.00021917,2]
[402028337,1768487447060,-936.58,0.00021917,2]
[402028338,1768487447070,-500.0,0.00021917,2]
[402028339,1768487447079,-500.0,0.00021917,2]
[402028340,1768487447088,-531.83305369,0.00021917,2]
[402028341,1768487447097,-500.0,0.00021917,2]
[402028342,1768487447106,-500.0,0.00021917,2]
[402028343,1768487447115,-500.0,0.00021917,2]
[402028344,1768487447124,-1770.85,0.00021917,2]
[402028345,1768487447133,-557.08090477,0.00021917,2]
[402028346,1768487447142,-879.33,0.00021917,2]
[402028347,1768487447151,-500.0,0.00021917,2]
[402028348,1768487447160,-500.0,0.00021917,2]
[402028349,1768487447169,-978.59,0.00021917,2]
[402028350,1768487447178,-872.67,0.00021917,2]
[402028351,1768487447186,-500.0,0.00021917,2]
[402028352,1768487447195,-500.0,0.00021917,2]
[402028353,1768487447203,-478.16533018,0.00021917,2]
[402028354,1768487447213,-500.0,0.00021917,2]
[402028355,1768487447222,-593.36,0.00021917,2]
[402028356,1768487447231,-546.67,0.00021917,2]
[402028357,1768487447241,-500.0,0.00021917,2]
[402028358,1768487447250,-508.44027865,0.00021917,2]
[402028359,1768487447259,-1246.71,0.00021917,2]
[402028360,1768487447268,-1281.78,0.00021917,2]
[402028361,1768487447278,-500.0,0.00021917,2]
[402028362,1768487447288,-500.0,0.00021917,2]
[402028363,1768487447297,-1341.56,0.00021917,2]
[402028364,1768487447307,-500.0,0.00021917,2]
[402028365,1768487447316,-500.0,0.00021917,2]
[402028366,1768487447325,-521.17,0.00021917,2]
[402028367,1768487447334,-500.0,0.00021917,2]
[402028368,1768487447343,-500.0,0.00021917,2]
[402028369,1768487447352,-500.0,0.00021917,2]
[402028370,1768487447361,-500.0,0.00021917,2]
[402028371,1768487447369,-500.0,0.00021917,2]
[402028372,1768487447378,-500.0,0.00021917,2]
[402028373,1768487447387,-500.0,0.00021917,2]
[402028374,1768487447397,-644.29,0.00021917,2]
[402028375,1768487447406,-500.0,0.00021917,2]
[402028376,1768487447415,-506.33,0.00021917,2]
[402028377,1768487447425,-500.0,0.00021917,2]
[402028378,1768487447434,-594.26,0.00021917,2]
[402028379,1768487447443,-500.0,0.00021917,2]
[402028380,1768487447452,-500.0,0.00021917,2]
[402028381,1768487447461,-500.0,0.00021917,2]
[402028382,1768487447470,-500.0,0.00021917,2]
[402028383,1768487447479,-532.31521996,0.00021917,2]
[402028384,1768487447489,-500.0,0.00021917,2]
[402028385,1768487447498,-500.0,0.00021917,2]
[402028386,1768487447507,-554.13,0.00021917,2]
[402028387,1768487447516,-500.0,0.00021917,2]
[402028388,1768487447525,-500.0,0.00021917,2]
[402028389,1768487447535,-500.0,0.00021917,2]
[402028390,1768487447546,-500.0,0.00021917,2]
[402028391,1768487447556,-1255.49,0.00021917,2]
[402028392,1768487447565,-500.0,0.00021917,2]
[402028393,1768487447574,-1529.94,0.00021917,2]
[402028394,1768487447583,-926.97,0.00021917,2]
[402028395,1768487447593,-500.0,0.00021917,2]
[402028396,1768487447602,-539.23139694,0.00021917,2]
[402028397,1768487447611,-500.0,0.00021917,2]
[402028398,1768487447620,-615.75,0.00021917,2]
[402028399,1768487447630,-309.42699713,0.00021917,2]
[402028400,1768487447639,-507.13622964,0.00021917,2]
[402028401,1768487447648,-634.09,0.00021917,2]
[402028402,1768487447657,-533.67,0.00021917,2]
[402028403,1768487447667,-1081.71,0.00021917,2]
[402028404,1768487447676,-1130.5,0.00021917,2]
[402028405,1768487447685,-988.89,0.00021917,2]
[402028406,1768487447694,-500.0,0.00021917,2]
[402028407,1768487447704,-220.61183491,0.00021917,2]
[402028408,1768487447712,-686.99,0.00021917,2]
[402028409,1768487447721,-500.0,0.00021917,2]
[402028410,1768487447730,-500.0,0.00021917,2]
[402028411,1768487447740,-500.0,0.00021917,2]
[402028412,1768487447749,-500.0,0.00021917,2]
[402028413,1768487447758,-903.94,0.00021917,2]
[402028414,1768487447767,-521.92,0.00021917,2]
[402028415,1768487447777,-532.0,0.00021917,2]
[402028416,1768487447787,-500.0,0.00021917,2]
[402028417,1768487447799,-500.0,0.00021917,2]
[402028418,1768487447808,-500.0,0.00021917,2]
[402028419,1768487447817,-500.0,0.00021917,2]
[402028420,1768487447827,-1217.96,0.00021917,2]
[402028421,1768487447837,-500.0,0.00021917,2]
[402028422,1768487447846,-500.0,0.00021917,2]
[402028423,1768487447855,-500.0,0.00021917,2]
[402028424,1768487447864,-1113.99,0.00021917,2]
[402028425,1768487447873,-500.0,0.00021917,2]
[402028426,1768487447882,-1109.33,0.00021917,2]
[402028427,1768487447892,-508.58606175,0.00021917,2]
[402028428,1768487447901,-500.0,0.00021917,2]
[402028429,1768487447910,-171.06275031,0.00021917,2]
[402028430,1768487447920,-597.88409267,0.00021917,2]
[402028431,1768487447929,-1615.4,0.00021917,2]
[402028432,1768487447938,-500.0,0.00021917,2]
[402028433,1768487447947,-580.91,0.00021917,2]
[402028434,1768487447956,-500.0,0.00021917,2]
[402028435,1768487447965,-583.99,0.00021917,2]
[402028436,1768487447974,-635.73,0.00021917,2]
[402028437,1768487447984,-500.0,0.00021917,2]
[402028438,1768487447993,-803.86,0.00021917,2]
[402028439,1768487448002,-551.6,0.00021917,2]
[402028440,1768487448011,-500.0,0.00021917,2]
[402028441,1768487448022,-915.52,0.00021917,2]
[402028442,1768487448031,-1913.88,0.00021917,2]
[402028443,1768487448040,-500.0,0.00021917,2]
[402028444,1768487448049,-500.0,0.00021917,2]
[402028445,1768487448058,-500.0,0.00021917,2]
[402028446,1768487448067,-500.0,0.00021917,2]
[402028447,1768487448077,-500.0,0.00021917,2]
[402028448,1768487448085,-500.0,0.00021917,2]
[402028449,1768487448095,-500.0,0.00021917,2]
[402028450,1768487448104,-500.0,0.00021917,2]
[402028451,1768487448114,-500.0,0.00021917,2]
[402028452,1768487448123,-500.0,0.00021917,2]
[402028453,1768487448133,-500.0,0.00021917,2]
[402028454,1768487448142,-500.0,0.00021917,2]
[402028455,1768487448151,-1112.62,0.00021917,2]
[402028456,1768487448161,-500.0,0.00021917,2]
[402028457,1768487448171,-500.0,0.00021917,2]
[402028458,1768487448180,-500.0,0.00021917,2]
[402028459,1768487448189,-500.0,0.00021917,2]
[402028460,1768487448199,-500.0,0.00021917,2]
[402028461,1768487448208,-1872.85,0.00021917,2]
[402028462,1768487448217,-500.0,0.00021917,2]
[402028463,1768487448227,-1027.2,0.00021917,2]
[402028464,1768487448240,-592.05,0.00021917,2]
[402028465,1768487448250,-500.0,0.00021917,2]
[402028466,1768487448259,-500.0,0.00021917,2]
[402028467,1768487448269,-500.0,0.00021917,2]
[402028468,1768487448280,-841.23,0.00021917,2]
[402028469,1768487448290,-500.0,0.00021917,2]
[402028470,1768487448299,-500.0,0.00021917,2]